lending/lending_fUSD_20240128
["ID","MTS","AMOUNT","RATE_DAILY","PERIOD"]
[312918952,1706460728716,-459.74063546,0.00022,2]
[312918953,1706460728738,-585220.73497066,0.00022799,2]
[312918954,1706460728758,-8350.3867,0.000228,2]
[312918955,1706460728779,-215.39252123,0.00022975,2]
[312918956,1706460728800,-162.10429849,0.00022998,2]
[312918957,1706460728821,-701.01986545,0.00022998,2]
[312918958,1706460728843,-338.8976,0.00022998,2]
[312918959,1706460728864,-241.55857503,0.00022998,2]
[312918960,1706460728885,-354.42530625,0.00022998,2]
[312918961,1706460728906,-1963.42105427,0.00022998,2]
[312918962,1706460728926,-362.29024817,0.00022998,2]
[312918963,1706460728948,-3432.80188843,0.00022999,2]
[312918964,1706460728972,-5211.21956191,0.00022999,2]
[312918965,1706460728992,-698.71506355,0.00022999,2]
[312918966,1706460729014,-233.07188267,0.00022999,2]
[312918967,1706460729039,-156282.98385491,0.00023,2]
[312918970,1706460825449,6653.0,0.0002,2]
[312918971,1706460834853,400.0,0.0002,2]
[312918975,1706461027614,158.14401802,0.00021574,2]
[312918978,1706461271189,-385.11059656,0.00021654,2]
[312918979,1706461271217,-4255.31741538,0.00021654,2]
[312918980,1706461271246,-1000.0,0.00021655,2]
[312918981,1706461271273,-178.19299601,0.00021656,2]
[312918982,1706461271300,-1262.98113913,0.00021656,2]
[312918983,1706461271330,-263.95414554,0.00021657,2]
[312918984,1706461271356,-500.0,0.00021672,2]
[312918985,1706461271384,-537.38418015,0.00021674,2]
[312918986,1706461271414,-583.2561244,0.00021682,2]
[312918987,1706461271441,-150.0,0.00021682,2]
[312918988,1706461271469,-20394.84607217,0.00021683,2]
[312918989,1706461271499,-499.99,0.00021686,2]
[312918990,1706461271536,-200.0,0.00021718,2]
[312918991,1706461271564,-800.0,0.00021813,2]
[312918992,1706461271593,-367.91,0.00021813,2]
[312918993,1706461479740,193.95,0.00020143,2]
[312918994,1706461492657,200.0,0.00021888,2]
[312919006,1706461831605,-997.28701104,0.00022,2]
[312919007,1706461831614,-360.0,0.00022042,2]
[312919008,1706461831623,-150.0,0.00022059,2]
[312919009,1706461831633,-2312.8058259,0.0002206,2]
[312919010,1706461831645,-359.66464337,0.0002206,2]
[312919011,1706461831657,-973.32883742,0.0002206,2]
[312919012,1706461831669,-275.51069331,0.0002206,2]
[312919013,1706461831679,-773.5465699,0.00022078,2]
[312919014,1706461831687,-1.58790525,0.00022103,2]
[312919015,1706461831701,-305.00209475,0.00022103,2]
[312919016,1706461831711,-560.14448134,0.00022168,2]
[312919017,1706461831738,-1191.63461506,0.00022168,2]
[312919018,1706461831749,-481.13236969,0.00022168,2]
[312919019,1706461831760,-590.0394705,0.00022168,2]
[312919020,1706461831771,-21077.04906341,0.00022168,2]
[312919021,1706461831780,-500.0,0.00022227,2]
[312919022,1706461831790,-2000.0,0.00022367,2]
[312919023,1706461831799,-183.39,0.00022405,2]
[312919024,1706461831809,-193.95,0.00022406,2]
[312919025,1706461831819,-5778.04761314,0.000225,2]
[312919026,1706461831828,-3367.91,0.000225,2]
[312919027,1706461831838,-6068.47180341,0.000225,2]
[312919028,1706461831848,-3802.36,0.00022636,2]
[312919029,1706461831858,-16305.1432,0.0002267,2]
[312919030,1706461831868,-1250.96,0.0002267,2]
[312919032,1706461831879,-1000.0,0.0002267,2]
[312919034,1706461831889,-1013.05,0.00022769,2]
[312919036,1706461831899,-14515.62159838,0.00022779,2]
[312919038,1706461831909,-237.8275,0.00022899,2]
[312919040,1706461831920,-152.76660955,0.000229,2]
[312919043,1706461831931,-3569.88790385,0.000229,2]
[312919046,1706461831942,-5000.0,0.000229,2]
[312919049,1706461831952,-160.17758008,0.000229,2]
[312919051,1706461831962,-356.78183912,0.000229,2]
[312919053,1706461831973,-202.4243167,0.000229,2]
[312919055,1706461831984,-183.46377966,0.000229,2]
[312919056,1706461831994,-204.90996959,0.000229,4]
[312919057,1706461832004,-3463.13975101,0.000229,2]
[312919058,1706461832024,-662.02336373,0.000229,2]
[312919059,1706461832034,-291.86650418,0.0002299,2]
[312919060,1706461832043,-400.0,0.00022998,2]
[312919061,1706461832053,-172.37737233,0.00022998,2]
[312919062,1706461832063,-241.88228265,0.00022998,2]
[312919063,1706461832073,-2621.00917217,0.00022998,2]
[312919064,1706461832083,-524.76448684,0.00022998,2]
[312919065,1706461832094,-344.82727518,0.00022998,2]
[312919066,1706461832104,-1363.51948473,0.00022998,2]
[312919067,1706461832114,-3631.84855062,0.00022998,2]
[312919068,1706461832125,-155.0,0.00022998,2]
[312919069,1706461832136,-7797.6592019,0.00022998,2]
[312919070,1706461832146,-2143.20144114,0.00022998,2]
[312919071,1706461832157,-3335.28469283,0.00022998,2]
[312919072,1706461832166,-3866.52268433,0.00022998,2]
[312919073,1706461832176,-5453.28620354,0.00022998,2]
[312919074,1706461832186,-4248.54360956,0.00022998,2]
[312919075,1706461832195,-262.77176621,0.00022998,2]
[312919076,1706461832206,-415.05647038,0.00022998,2]
[312919077,1706461832215,-463.72217971,0.00022998,2]
[312919078,1706461832226,-177.63285351,0.00022998,2]
[312919079,1706461832236,-835.5122752,0.00022999,2]
[312919080,1706461832245,-500.0,0.00022999,2]
[312919081,1706461832255,-500.0,0.00022999,2]
[312919082,1706461832274,-500.0,0.00022999,2]
[312919083,1706461832284,-500.0,0.00022999,2]
[312919084,1706461832293,-419.3896757,0.00022999,2]
[312919085,1706461832303,-500.0,0.00022999,2]
[312919086,1706461832313,-500.0,0.00022999,2]
[312919087,1706461832322,-500.0,0.00022999,2]
[312919088,1706461832332,-500.0,0.00022999,2]
[312919089,1706461832341,-500.0,0.00022999,2]
[312919090,1706461832352,-500.0,0.00022999,2]
[312919091,1706461832361,-348.06403897,0.00022999,2]
[312919092,1706461832370,-500.0,0.00022999,2]
[312919093,1706461832379,-500.0,0.00022999,2]
[312919094,1706461832389,-500.0,0.00022999,2]
[312919095,1706461832398,-500.0,0.00022999,2]
[312919096,1706461832407,-500.0,0.00022999,2]
[312919097,1706461832416,-570.05020884,0.00022999,2]
[312919098,1706461832426,-219.65558141,0.00022999,2]
[312919099,1706461832435,-500.0,0.00022999,2]
[312919100,1706461832445,-500.0,0.00022999,2]
[312919101,1706461832454,-500.0,0.00022999,2]
[312919102,1706461832464,-500.0,0.00022999,2]
[312919103,1706461832474,-500.0,0.00022999,2]
[312919104,1706461832483,-500.0,0.00022999,2]
[312919105,1706461832494,-500.0,0.00022999,2]
[312919106,1706461832503,-500.0,0.00022999,2]
[312919107,1706461832523,-500.0,0.00022999,2]
[312919108,1706461832534,-500.0,0.00022999,2]
[312919109,1706461832543,-500.0,0.00022999,2]
[312919110,1706461832553,-500.0,0.00022999,2]
[312919111,1706461832563,-437.22863043,0.00022999,2]
[312919112,1706461832574,-500.0,0.00022999,2]
[312919113,1706461832584,-500.0,0.00022999,2]
[312919114,1706461832594,-500.0,0.00022999,2]
[312919115,1706461832604,-500.0,0.00022999,2]
[312919116,1706461832615,-500.0,0.00022999,2]
[312919117,1706461832625,-500.0,0.00022999,2]
[312919118,1706461832636,-500.0,0.00022999,2]
[312919119,1706461832646,-500.0,0.00022999,2]
[312919120,1706461832657,-500.0,0.00022999,2]
[312919121,1706461832668,-650.0,0.00022999,2]
[312919122,1706461832678,-500.0,0.00022999,2]
[312919123,1706461832688,-635.91201103,0.00022999,2]
[312919124,1706461832697,-500.0,0.00022999,2]
[312919125,1706461832707,-500.0,0.00022999,2]
[312919126,1706461832716,-500.0,0.00022999,2]
[312919127,1706461832727,-423.35993203,0.00022999,2]
[312919128,1706461832737,-500.0,0.00022999,2]
[312919129,1706461832746,-500.0,0.00022999,2]
[312919130,1706461832755,-500.0,0.00022999,2]
[312919131,1706461832774,-500.0,0.00022999,2]
[312919132,1706461832783,-315.42599064,0.00022999,2]
[312919133,1706461832792,-500.0,0.00022999,2]
[312919134,1706461832801,-500.0,0.00022999,2]
[312919135,1706461832811,-500.0,0.00022999,2]
[312919136,1706461832820,-500.0,0.00022999,2]
[312919137,1706461832829,-500.0,0.00022999,2]
[312919138,1706461832840,-500.0,0.00022999,2]
[312919139,1706461832849,-500.0,0.00022999,2]
[312919140,1706461832858,-460.2721294,0.00022999,2]
[312919141,1706461832868,-500.0,0.00022999,2]
[312919142,1706461832877,-500.0,0.00022999,2]
[312919143,1706461832886,-500.0,0.00022999,2]
[312919144,1706461832895,-500.0,0.00022999,2]
[312919145,1706461832905,-500.0,0.00022999,2]
[312919146,1706461832914,-500.0,0.00022999,2]
[312919147,1706461832924,-213.11120744,0.00022999,2]
[312919148,1706461832933,-251638.22266106,0.00023,2]
[312919149,1706461832946,-1498.83714,0.00023,2]
[312919150,1706461832959,-2431.44335424,0.00023,2]
[312919151,1706461832974,-2805.78287957,0.00023,2]
[312919152,1706461832985,-1003.29,0.00023,2]
[312919153,1706461832996,-41222.10508229,0.00023,2]
[312919154,1706461833007,-278.60878409,0.00023,2]
[312919155,1706461833024,-2114.36225,0.00023,2]
[312919156,1706461833036,-366014.74791595,0.00023,2]
[312919157,1706461833047,-250.0,0.00023,2]
[312919158,1706461833064,-11080.29459186,0.00023,2]
[312919159,1706461833079,-311.44051922,0.00023,2]
[312919160,1706461833090,-407.53,0.00023,2]
[312919161,1706461833101,-73035.92393377,0.00023,2]
[312919162,1706461833112,-818.99,0.00023,2]
[312919163,1706461833136,-3698.8629852,0.00023,2]
[312919178,1706461837598,-578.19241259,0.000229,2]
[312919179,1706461837608,-3965.72597892,0.00023,2]
[312919180,1706461837654,-1670.64200239,0.00023,2]
[312919181,1706461837666,-1038.57916476,0.00023,2]
[312919182,1706461837711,-1711.60859331,0.00023,2]
[312919183,1706461837733,-484.22999944,0.00023,2]
[312919184,1706461837745,-2090317.56589328,0.00023,2]
[312919185,1706461837753,-579465.50011741,0.00023,2]
[312919186,1706461837827,-500.0,0.00022999,2]
[312919187,1706461837836,-500.0,0.00022999,2]
[312919188,1706461837846,-2698.23679594,0.00023,2]
[312919476,1706461842563,-578.19241258,0.00022909,2]
[312919477,1706461842573,-96.20392199,0.00022999,2]
[312919478,1706461842678,-403.79607801,0.00022999,2]
[312919479,1706461842688,-248.08163882,0.00022999,2]
[312919480,1706461842697,-157948.26932985,0.00023,2]
[312919481,1706461842709,-846.24244422,0.00023,2]
[312919516,1706461846722,-1056977.63316217,0.00023,2]
[312919517,1706461846732,-259.72,0.00023027,2]
[312919518,1706461846742,-306.59,0.00023746,2]
[312919519,1706461846751,-6945.24,0.00024384,2]
[312919520,1706461846761,-800.0,0.00024539,2]
[312919521,1706461846771,-250.0,0.00024658,2]
[312919522,1706461846784,-193.95,0.0002467,2]
[312919523,1706461846794,-360.0,0.00024797,2]
[312919524,1706461846803,-304.11862422,0.00025,2]
[312919525,1706461846814,-1587.22750165,0.00025,2]
[312919526,1706461846823,-935.55189282,0.00025,2]
[312919527,1706461846832,-1903.74995284,0.00025,2]
[312919528,1706461846841,-202.44241992,0.00025,2]
[312919529,1706461846850,-550.0,0.00025,3]
[312919530,1706461846859,-306.59,0.0002539,2]
[312919531,1706461846869,-3569.8879038,0.00025491,2]
[312919532,1706461846878,-150.0,0.00026079,2]
[312919533,1706461846889,-150.0,0.00026338,2]
[312919534,1706461846900,-150.0,0.00026338,2]
[312919535,1706461846910,-176.27062022,0.00026517,2]
[312919536,1706461846920,-160.45854719,0.00026519,2]
[312919537,1706461846930,-196.97758643,0.00026519,2]
[312919538,1706461846940,-232.38578002,0.0002652,2]
[312919539,1706461846950,-1011.22518572,0.0002652,5]
[312919540,1706461846960,-193.95,0.00026934,2]
[312919541,1706461846973,-600.0,0.00027,3]
[312919542,1706461846982,-306.59,0.00027034,2]
[312919543,1706461846992,-800.0,0.00027266,2]
[312919544,1706461847002,-6643.0,0.000273,2]
[312919545,1706461847011,-155.0,0.00027397,2]
[312919546,1706461847021,-150.0,0.00027397,2]
[312919547,1706461847033,-665.77,0.00027397,2]
[312919548,1706461847268,-360.0,0.00027553,2]
[312919549,1706461847281,-665.77,0.00027556,2]
[312919550,1706461847290,-1254.0,0.00027627,2]
[312919551,1706461847298,-528.0,0.00027627,2]
[312919552,1706461847309,-758.503,0.00027627,2]
[312919553,1706461847318,-210.0,0.00027627,2]
[312919554,1706461847328,-306.63,0.00027671,2]
[312919555,1706461847338,-665.77,0.00027714,2]
[312919556,1706461847347,-665.77,0.00027872,2]
[312919557,1706461847356,-153.21051026,0.00027945,2]
[312919558,1706461847365,-17474.35962923,0.00028,2]
[312919559,1706461847374,-665.77,0.0002803,2]
[312919560,1706461847384,-3569.8879038,0.00028082,2]
[312919561,1706461847393,-665.77,0.00028189,2]
[312919562,1706461847402,-665.77,0.00028347,2]
[312919563,1706461847411,-665.77,0.00028505,2]
[312919564,1706461847420,-665.77,0.00028664,2]
[312919565,1706461847429,-306.59,0.00028678,2]
[312919566,1706461847439,-306.63,0.00028695,2]
[312919567,1706461847448,-155.0,0.00028767,2]
[312919568,1706461847457,-665.77,0.00028822,2]
[312919569,1706461847466,-193.95,0.00029198,2]
[312919570,1706461847477,-306.63,0.00029719,2]
[312919571,1706461847487,-175.84884344,0.000298,2]
[312919572,1706461847499,-4659.16388182,0.0002996,2]
[312919573,1706461847509,-800.0,0.00029993,2]
[312919574,1706461847520,-1547.62354873,0.0003,4]
[312919575,1706461847534,-693.05480847,0.0003,2]
[312919576,1706461847544,-9641.46795832,0.0003,2]
[312919577,1706461847554,-582.7666979,0.0003,2]
[312919578,1706461847563,-2824.43115659,0.0003,2]
[312919579,1706461847572,-3000.0,0.0003,2]
[312919580,1706461847582,-2993.37585803,0.000301,2]
[312919581,1706461847591,-154.31,0.00030137,2]
[312919582,1706461847599,-155.0,0.00030137,2]
[312919583,1706461847608,-360.0,0.00030308,2]
[312919584,1706461847618,-306.59,0.00030322,2]
[312919585,1706461847628,-377.506,0.00030449,7]
[312919586,1706461847637,-1252.0,0.00030627,2]
[312919587,1706461847647,-704.0,0.00030627,2]
[312919588,1706461847656,-210.0,0.00030627,2]
[312919589,1706461847665,-3569.8879038,0.00030673,2]
[312919590,1706461847674,-306.63,0.00030743,2]
[312919591,1706461847684,-1000.0,0.00030818,2]
[312919592,1706461847693,-193.95,0.00031462,2]
[312919593,1706461847703,-155.0,0.00031507,2]
[312919594,1706461847712,-180.0,0.00031644,2]
[312919595,1706461847721,-10657.28,0.000317,2]
[312919596,1706461847732,-306.63,0.00031767,2]
[312919597,1706461847741,-375.20474217,0.00032,2]
[312919598,1706461847750,-202.30089417,0.000325,2]
[312919599,1706461847759,-800.0,0.00032719,2]
[312919600,1706461847770,-155.0,0.00032877,2]
[312919601,1706461847782,-360.0,0.00033063,2]
[312919602,1706461847792,-3569.8879038,0.00033264,5]
[312919603,1706461847802,-437.0,0.00033356,5]
[312919604,1706461847812,-207.0,0.00033627,2]
[312919605,1706461847821,-193.95,0.00033726,2]
[312919606,1706461847830,-154.31,0.0003379,2]
[312919607,1706461847839,-150.0,0.00033999,2]
[312919608,1706461847850,-150.0,0.00033999,2]
[312919609,1706461847859,-500.0,0.00034,2]
[312919610,1706461847868,-500.0,0.00034,2]
[312919611,1706461847877,-500.0,0.00034,2]
[312919612,1706461847887,-500.0,0.00034,2]
[312919613,1706461847896,-500.0,0.00034,2]
[312919614,1706461847906,-500.0,0.00034,2]
[312919615,1706461847917,-500.0,0.00034,2]
[312919616,1706461847927,-500.0,0.00034,2]
[312919617,1706461847936,-500.0,0.00034,2]
[312919618,1706461847945,-500.0,0.00034,2]
[312919619,1706461847954,-500.0,0.00034,2]
[312919620,1706461847963,-500.0,0.00034,2]
[312919621,1706461847973,-500.0,0.00034,2]
[312919622,1706461847982,-500.0,0.00034,2]
[312919623,1706461847990,-500.0,0.00034,2]
[312919624,1706461847999,-500.0,0.00034,2]
[312919625,1706461848008,-500.0,0.00034,2]
[312919626,1706461848017,-500.0,0.00034,2]
[312919627,1706461848028,-500.0,0.00034,2]
[312919628,1706461848037,-500.0,0.00034,2]
[312919629,1706461848046,-500.0,0.00034,2]
[312919630,1706461848055,-500.0,0.00034,2]
[312919631,1706461848063,-500.0,0.00034,2]
[312919632,1706461848073,-500.0,0.00034,2]
[312919633,1706461848082,-500.0,0.00034,2]
[312919634,1706461848090,-500.0,0.00034,2]
[312919635,1706461848099,-500.0,0.00034,2]
[312919636,1706461848108,-500.0,0.00034,2]
[312919637,1706461848119,-500.0,0.00034,2]
[312919638,1706461848129,-500.0,0.00034,2]
[312919639,1706461848140,-500.0,0.00034,2]
[312919640,1706461848150,-500.0,0.00034,2]
[312919641,1706461848159,-500.0,0.00034,2]
[312919642,1706461848169,-500.0,0.00034,2]
[312919643,1706461848178,-500.0,0.00034,2]
[312919644,1706461848188,-500.0,0.00034,2]
[312919645,1706461848197,-500.0,0.00034,2]
[312919646,1706461848206,-500.0,0.00034,2]
[312919647,1706461848215,-500.0,0.00034,2]
[312919648,1706461848225,-500.0,0.00034,2]
[312919649,1706461848234,-500.0,0.00034,2]
[312919650,1706461848243,-500.0,0.00034,2]
[312919651,1706461848253,-500.0,0.00034,2]
[312919652,1706461848262,-500.0,0.00034,2]
[312919653,1706461848271,-500.0,0.00034,2]
[312919654,1706461848281,-500.0,0.00034,2]
[312919655,1706461848290,-500.0,0.00034,2]
[312919656,1706461848299,-500.0,0.00034,2]
[312919657,1706461848308,-500.0,0.00034,2]
[312919658,1706461848317,-500.0,0.00034,2]
[312919659,1706461848326,-500.0,0.00034,2]
[312919660,1706461848335,-500.0,0.00034,2]
[312919661,1706461848345,-500.0,0.00034,2]
[312919662,1706461848354,-507.45614282,0.00034,4]
[312919663,1706461848363,-155.0,0.00034247,2]
[312919664,1706461848371,-247.85885747,0.00034898,4]
[312919665,1706461848380,-345.60573259,0.00034899,4]
[312919666,1706461848389,-3009.76741633,0.00034899,5]
[312919667,1706461848398,-516.46328289,0.000349,2]
[312919668,1706461848406,-516.46328289,0.000349,2]
[312919669,1706461848415,-516.46328289,0.000349,2]
[312919670,1706461848424,-5000.0,0.00035,3]
[312919671,1706461848433,-651.32816336,0.00035,10]
[312919672,1706461848441,-3133.73704793,0.00035,2]
[312919673,1706461848450,-1673.52833217,0.00035,2]
[312919674,1706461848459,-3000.0,0.00035,2]
[312919675,1706461848468,-6945.24,0.00035616,2]
[312919676,1706461848477,-155.0,0.00035617,2]
[312919677,1706461848489,-153.02,0.000357,7]
[312919678,1706461848497,-494.52,0.000357,7]
[312919679,1706461848506,-216.17,0.000357,7]
[312919680,1706461848515,-516.46328289,0.00035757,2]
[312919681,1706461848524,-3569.8879038,0.00035855,8]
[312919682,1706461848536,-1490.0,0.000359,12]
[312919683,1706461848544,-306.72940004,0.0003591,5]
[312919684,1706461848554,-193.95,0.0003599,2]
[312919685,1706461848564,-44916.38421928,0.0003649,10]
[312919686,1706461848574,-202.4243167,0.000369,2]
[312919687,1706461848583,-3463.13975099,0.000369,2]
[312919688,1706461848592,-662.02336371,0.000369,2]
[312919689,1706461848601,-155.0,0.00036987,2]
[312919690,1706461848610,-154.31,0.00037443,2]
[312919691,1706461848619,-210.50599396,0.000375,2]
[312919692,1706461848628,-1356.72455971,0.00037667,2]
[312919693,1706461848636,-152.1,0.000377,3]
[312919694,1706461848646,-152.1,0.000377,3]
[312919695,1706461848655,-152.1,0.000377,3]
[312919696,1706461848664,-152.1,0.000377,3]
[312919697,1706461848673,-152.1,0.000377,3]
[312919698,1706461848683,-152.1,0.000377,3]
[312919699,1706461848691,-152.1,0.000377,3]
[312919700,1706461848701,-152.1,0.000377,3]
[312919701,1706461848710,-152.1,0.000377,3]
[312919702,1706461848719,-152.1,0.000377,3]
[312919703,1706461848729,-152.1,0.000377,3]
[312919704,1706461848738,-152.1,0.000377,3]
[312919705,1706461848747,-152.1,0.000377,3]
[312919706,1706461848757,-152.1,0.000377,3]
[312919707,1706461848767,-152.1,0.000377,3]
[312919708,1706461848777,-152.1,0.000377,3]
[312919709,1706461848786,-152.1,0.000377,3]
[312919710,1706461848795,-206.64923956,0.0003789,7]
[312919711,1706461848805,-192.45531493,0.00037897,2]
[312919712,1706461848814,-573.494742,0.000379,25]
[312919713,1706461848823,-644538.408375,0.000379,3]
[312919714,1706461848833,-1356.72455971,0.00038068,2]
[312919715,1706461848841,-193.95,0.00038254,2]
[312919716,1706461848851,-1356.72455971,0.00038336,2]
[312919717,1706461848860,-3569.8879038,0.00038445,11]
[312919718,1706461848869,-1356.72455971,0.00038481,2]
[312919719,1706461848878,-1356.72455971,0.00038829,2]
[312919720,1706461848887,-1356.72455971,0.00038941,2]
[312919721,1706461848896,-204.476236,0.00039017,7]
[312919722,1706461848905,-434.66039764,0.00039036,2]
[312919723,1706461848914,-216.17,0.000391,7]
[312919724,1706461848924,-152.76660954,0.000394,4]
[312919725,1706461848933,-1356.72455971,0.00039436,2]
[312919726,1706461848942,-1356.72455971,0.00039577,2]
[312919727,1706461848951,-1356.72455971,0.00039951,2]
[312919728,1706461848960,-767.58742384,0.00039988,2]
[312919729,1706461848969,-506.52431985,0.00039988,4]
[312919730,1706461848978,-155.40023858,0.00039988,2]
[312919731,1706461848987,-153.02,0.0004,7]
[312919732,1706461848995,-494.52,0.0004,7]
[312919733,1706461849004,-3000.0,0.0004,2]
[312919734,1706461849013,-516.46328289,0.00040043,5]
[312919735,1706461849023,-1356.72455971,0.00040123,2]
[312919736,1706461849033,-186.24664721,0.00040266,4]
[312919737,1706461849042,-223.0,0.0004032,10]
[312919738,1706461849051,-193.95,0.00040518,2]
[312919739,1706461849062,-1356.72455971,0.00040525,2]
[312919740,1706461849071,-2787.9321988,0.0004068,2]
[312919741,1706461849080,-617.69928797,0.00040908,13]
[312919742,1706461849089,-1356.72455971,0.00040922,2]
[312919743,1706461849098,-4000.0,0.00041,2]
[312919744,1706461849107,-300.00000001,0.00041006,2]
[312919745,1706461849117,-3569.8879038,0.00041036,15]
[312919746,1706461849128,-191.11582529,0.00041088,4]
[312919747,1706461849138,-218.22518431,0.00041088,4]
[312919748,1706461849147,-155.37563385,0.00041088,4]
[312919749,1706461849157,-458.08995678,0.00041088,4]
[312919750,1706461849166,-19027.04764442,0.00041088,2]
[312919751,1706461849176,-250.61147486,0.00041088,4]
[312919752,1706461849185,-984.24808758,0.00041088,4]
[312919753,1706461849194,-24374.22356804,0.00041088,4]
[312919754,1706461849203,-936.05863322,0.00041088,4]
[312919755,1706461849213,-302.15259034,0.00041088,2]
[312919756,1706461849222,-264.68251618,0.00041088,4]
[312919757,1706461849231,-305.49481642,0.00041089,2]
[312919758,1706461849240,-200.0,0.0004109,2]
[312919759,1706461849249,-6432.29279313,0.0004109,2]
[312919760,1706461849259,-783.24092069,0.0004109,4]
[312919761,1706461849269,-500.0,0.0004109,7]
[312919762,1706461849278,-2247.89256333,0.0004109,3]
[312919763,1706461849287,-667.79594234,0.0004109,20]
[312919764,1706461849296,-8961.38344061,0.00041094,4]
[312919765,1706461849305,-308.57347231,0.00041094,5]
[312919766,1706461849314,-245.21688013,0.00041094,4]
[312919767,1706461849323,-1317.04712678,0.00041095,4]
[312919768,1706461849332,-154.31,0.00041096,2]
[312919769,1706461849341,-1826.37,0.00041096,5]
[312919770,1706461849350,-1542.81,0.000411,2]
[312919771,1706461849359,-1542.81,0.000411,2]
[312919772,1706461849368,-1542.81,0.000411,2]
[312919773,1706461849377,-1542.81,0.000411,2]
[312919774,1706461849386,-1542.81,0.000411,2]
[312919775,1706461849395,-1542.81,0.000411,2]
[312919776,1706461849404,-1542.81,0.000411,2]
[312919777,1706461849413,-1542.81,0.000411,2]
[312919778,1706461849423,-1542.81,0.000411,2]
[312919779,1706461849433,-1542.81,0.000411,2]
[312919780,1706461849442,-1036.87942914,0.00041129,30]
[312919781,1706461849451,-1356.72455971,0.0004113,2]
[312919782,1706461849460,-1307.641542,0.00041135,30]
[312919783,1706461849469,-9629.130551,0.00041135,30]
[312919784,1706461849478,-4000.672418,0.00041135,30]
[312919785,1706461849491,-282.710018,0.00041135,30]
[312919786,1706461849500,-242.5572894,0.00041532,4]
[312919787,1706461849509,-1071.96370442,0.00041532,4]
[312919788,1706461849518,-448.27259389,0.00041532,4]
[312919789,1706461849528,-308.23097893,0.00041532,4]
[312919790,1706461849538,-186.04753694,0.00041532,4]
[312919791,1706461849547,-773.22237751,0.00041532,4]
[312919792,1706461849557,-1292.57557074,0.00041532,14]
[312919793,1706461849567,-216.17,0.000416,7]
[312919794,1706461849576,-1356.72455971,0.00041607,2]
[312919795,1706461849585,-1307.641542,0.00041643,30]
[312919796,1706461849594,-9629.130551,0.00041643,30]
[312919797,1706461849605,-4000.672418,0.00041643,30]
[312919798,1706461849614,-173.104973,0.00041643,30]
[312919799,1706461849623,-282.710018,0.00041643,30]
[312919800,1706461849632,-2642.68092034,0.00041698,4]
[312919801,1706461849642,-10537.74843302,0.000417,4]
[312919802,1706461849652,-1356.72455971,0.00041719,2]
[312919803,1706461849661,-1902.182321,0.00041807,7]
[312919804,1706461849671,-152.1,0.000419,4]
[312919805,1706461849680,-152.1,0.000419,4]
[312919806,1706461849689,-152.1,0.000419,4]
[312919807,1706461849698,-152.1,0.000419,4]
[312919808,1706461849707,-152.1,0.000419,4]
[312919809,1706461849717,-152.1,0.000419,4]
[312919810,1706461849726,-152.1,0.000419,4]
[312919811,1706461849735,-152.1,0.000419,4]
[312919812,1706461849744,-152.1,0.000419,4]
[312919813,1706461849753,-152.1,0.000419,4]
[312919814,1706461849762,-152.1,0.000419,4]
[312919815,1706461849772,-152.1,0.000419,4]
[312919816,1706461849781,-152.1,0.000419,4]
[312919817,1706461849790,-152.1,0.000419,4]
[312919818,1706461849799,-152.1,0.000419,4]